[Event "Late-Titled-Tuesday-Blitz-October-03-2023"]
[Site "Chess.com"]
[Date "2023.10.03"]
[Round "8"]
[White "MalcolmPein"]
[Black "Bodhanas"]
[Result "1-0"]
[WhiteElo "2308"]
[BlackElo "2138"]
[TimeControl "180+1"]
[EndTime "15:25:30 PDT"]
[Termination "MalcolmPein won by checkmate"]

1. d4 {[%clk 0:02:57.5]} 1... Nf6 {[%clk 0:02:54.1]} 2. Nc3 {[%clk 0:02:56.8]}
2... g6 {[%clk 0:02:53.1]} 3. e4 {[%clk 0:02:56.4]} 3... d6 {[%clk 0:02:51.3]}
4. f4 {[%clk 0:02:56.1]} 4... Bg7 {[%clk 0:02:50.3]} 5. Nf3 {[%clk 0:02:56.5]}
5... O-O {[%clk 0:02:48]} 6. Bd3 {[%clk 0:02:52.4]} 6... c6 {[%clk 0:02:47.3]}
7. O-O {[%clk 0:02:50.9]} 7... Bg4 {[%clk 0:02:45.6]} 8. Be3 {[%clk 0:02:45.5]}
8... Nbd7 {[%clk 0:02:43.1]} 9. e5 {[%clk 0:02:26.6]} 9... dxe5 {[%clk
0:02:39.3]} 10. fxe5 {[%clk 0:02:24.7]} 10... Nd5 {[%clk 0:02:36.4]} 11. Nxd5
{[%clk 0:02:23.7]} 11... cxd5 {[%clk 0:02:36.3]} 12. h3 {[%clk 0:02:23.1]} 12...
Bxf3 {[%clk 0:02:32.8]} 13. Qxf3 {[%clk 0:02:21.8]} 13... e6 {[%clk 0:02:32.2]}
14. c3 {[%clk 0:02:13.5]} 14... f6 {[%clk 0:02:21.5]} 15. exf6 {[%clk
0:02:06.8]} 15... Nxf6 {[%clk 0:02:20.3]} 16. Bg5 {[%clk 0:01:37]} 16... Qd7
{[%clk 0:02:04.6]} 17. Qe2 {[%clk 0:01:31.4]} 17... Nh5 {[%clk 0:01:57]} 18.
Rxf8+ {[%clk 0:01:21.4]} 18... Rxf8 {[%clk 0:01:53.6]} 19. Re1 {[%clk
0:01:21.8]} 19... e5 {[%clk 0:01:42.6]} 20. dxe5 {[%clk 0:01:16.5]} 20... Qe6
{[%clk 0:01:41.2]} 21. Qg4 {[%clk 0:01:08.1]} 21... Qxg4 {[%clk 0:01:04.1]} 22.
hxg4 {[%clk 0:01:09]} 22... Ng3 {[%clk 0:01:01.5]} 23. e6 {[%clk 0:01:00.4]}
23... Ne4 {[%clk 0:00:57.5]} 24. e7 {[%clk 0:00:56.3]} 24... Nxg5 {[%clk
0:00:48.5]} 25. e8=Q {[%clk 0:00:49.3]} 25... Rxe8 {[%clk 0:00:47.4]} 26. Rxe8+
{[%clk 0:00:48.8]} 26... Kf7 {[%clk 0:00:47.9]} 27. Rb8 {[%clk 0:00:46.1]} 27...
b6 {[%clk 0:00:45.5]} 28. Rb7+ {[%clk 0:00:43.7]} 28... Kf6 {[%clk 0:00:45.5]}
29. Rxa7 {[%clk 0:00:42.9]} 29... Ne6 {[%clk 0:00:44.2]} 30. Rd7 {[%clk
0:00:32.4]} 30... Bh6 {[%clk 0:00:37.5]} 31. Rxd5 {[%clk 0:00:31.1]} 31... Be3+
{[%clk 0:00:36.9]} 32. Kf1 {[%clk 0:00:30.5]} 32... Nf4 {[%clk 0:00:36]} 33. Rd7
{[%clk 0:00:27.7]} 33... Ke6 {[%clk 0:00:31.9]} 34. Bb5 {[%clk 0:00:19]} 34...
h5 {[%clk 0:00:30.4]} 35. gxh5 {[%clk 0:00:18.5]} 35... gxh5 {[%clk 0:00:30.3]}
36. a3 {[%clk 0:00:17.1]} 36... Bc5 {[%clk 0:00:29.6]} 37. Rh7 {[%clk
0:00:15.6]} 37... Bd6 {[%clk 0:00:28.7]} 38. a4 {[%clk 0:00:13.8]} 38... Kf5
{[%clk 0:00:27.3]} 39. g3 {[%clk 0:00:12.6]} 39... Ng6 {[%clk 0:00:20.7]} 40.
Rxh5+ {[%clk 0:00:12.2]} 40... Kf6 {[%clk 0:00:19.4]} 41. Kg2 {[%clk 0:00:09.2]}
41... Ne5 {[%clk 0:00:14.8]} 42. Rh6+ {[%clk 0:00:08.4]} 42... Ke7 {[%clk
0:00:14.4]} 43. Rh7+ {[%clk 0:00:08.5]} 43... Kf6 {[%clk 0:00:13.8]} 44. Rb7
{[%clk 0:00:07.6]} 44... Bc5 {[%clk 0:00:14]} 45. b4 {[%clk 0:00:07.2]} 45...
Be3 {[%clk 0:00:13.8]} 46. a5 {[%clk 0:00:07.1]} 46... bxa5 {[%clk 0:00:13.4]}
47. bxa5 {[%clk 0:00:07.3]} 47... Bc5 {[%clk 0:00:11.9]} 48. a6 {[%clk
0:00:07.2]} 48... Kf5 {[%clk 0:00:12.3]} 49. a7 {[%clk 0:00:07.1]} 49... Bxa7
{[%clk 0:00:13]} 50. Rxa7 {[%clk 0:00:07]} 50... Ke4 {[%clk 0:00:13.3]} 51. Re7
{[%clk 0:00:06.6]} 51... Kd5 {[%clk 0:00:13]} 52. Rxe5+ {[%clk 0:00:06.6]} 52...
Kxe5 {[%clk 0:00:13.2]} 53. Kf3 {[%clk 0:00:07.1]} 53... Kf5 {[%clk 0:00:13.5]}
54. g4+ {[%clk 0:00:07.6]} 54... Kg5 {[%clk 0:00:14.1]} 55. c4 {[%clk 0:00:08]}
55... Kg6 {[%clk 0:00:14.6]} 56. c5 {[%clk 0:00:08.4]} 56... Kg5 {[%clk
0:00:15.3]} 57. c6 {[%clk 0:00:08.9]} 57... Kf6 {[%clk 0:00:15.4]} 58. c7 {[%clk
0:00:08.5]} 58... Kg5 {[%clk 0:00:15.9]} 59. c8=Q {[%clk 0:00:08.7]} 59... Kf6
{[%clk 0:00:16.5]} 60. Qf5+ {[%clk 0:00:08.3]} 60... Ke7 {[%clk 0:00:16.6]} 61.
g5 {[%clk 0:00:08]} 61... Kd8 {[%clk 0:00:15.4]} 62. Qh7 {[%clk 0:00:07.6]}
62... Kc8 {[%clk 0:00:15.1]} 63. g6 {[%clk 0:00:07.4]} 63... Kb8 {[%clk
0:00:15.7]} 64. g7 {[%clk 0:00:07.6]} 64... Ka8 {[%clk 0:00:16.4]} 65. g8=Q#
{[%clk 0:00:07.7]} 1-0

[Event "Late-Titled-Tuesday-Blitz-October-03-2023"]
[Site "Chess.com"]
[Date "2023.10.03"]
[Round "8"]
[White "azikom"]
[Black "artin10862"]
[Result "0-1"]
[WhiteElo "2593"]
[BlackElo "2814"]
[TimeControl "180+1"]
[EndTime "15:25:31 PDT"]
[Termination "artin10862 won on time"]

1. c4 {[%clk 0:03:00.8]} 1... Nf6 {[%clk 0:02:56.6]} 2. Nc3 {[%clk 0:03:00.1]}
2... g6 {[%clk 0:02:57]} 3. g3 {[%clk 0:02:58.3]} 3... Bg7 {[%clk 0:02:56.9]} 4.
Bg2 {[%clk 0:02:58.8]} 4... O-O {[%clk 0:02:57.4]} 5. e3 {[%clk 0:02:58.4]} 5...
d6 {[%clk 0:02:56.9]} 6. Nge2 {[%clk 0:02:58.7]} 6... e5 {[%clk 0:02:55.2]} 7.
d4 {[%clk 0:02:59.2]} 7... Nbd7 {[%clk 0:02:54.3]} 8. O-O {[%clk 0:02:58.7]}
8... Re8 {[%clk 0:02:54.7]} 9. b4 {[%clk 0:02:58.3]} 9... e4 {[%clk 0:02:48.1]}
10. b5 {[%clk 0:02:46.9]} 10... Nf8 {[%clk 0:02:46.2]} 11. a4 {[%clk 0:02:39.6]}
11... h5 {[%clk 0:02:45.9]} 12. Nf4 {[%clk 0:02:31.8]} 12... Bf5 {[%clk
0:02:25]} 13. Ba3 {[%clk 0:02:29.5]} 13... N8h7 {[%clk 0:02:23.6]} 14. c5 {[%clk
0:02:25.4]} 14... Bg4 {[%clk 0:02:17.8]} 15. Qc2 {[%clk 0:02:20.2]} 15... d5
{[%clk 0:02:17.5]} 16. c6 {[%clk 0:02:17.1]} 16... bxc6 {[%clk 0:01:58.2]} 17.
bxc6 {[%clk 0:02:16.7]} 17... g5 {[%clk 0:01:58.6]} 18. Nfe2 {[%clk 0:02:11.8]}
18... Bf3 {[%clk 0:01:58.3]} 19. Rfb1 {[%clk 0:01:54.6]} 19... h4 {[%clk
0:01:49.2]} 20. Rb7 {[%clk 0:01:50.3]} 20... a6 {[%clk 0:01:47.1]} 21. Rab1
{[%clk 0:01:44.5]} 21... Qc8 {[%clk 0:01:46.1]} 22. Qd1 {[%clk 0:01:24]} 22...
Re6 {[%clk 0:01:28.4]} 23. Qb3 {[%clk 0:00:49.4]} 23... Rxc6 {[%clk 0:01:23.6]}
24. Nxd5 {[%clk 0:00:47.8]} 24... Nxd5 {[%clk 0:00:51.8]} 25. Qxd5 {[%clk
0:00:47.4]} 25... Rf6 {[%clk 0:00:50]} 26. Nc3 {[%clk 0:00:43]} 26... Qg4 {[%clk
0:00:25]} 27. h3 {[%clk 0:00:36.2]} 27... Qc8 {[%clk 0:00:17.1]} 28. g4 {[%clk
0:00:33.6]} 28... Re6 {[%clk 0:00:07.1]} 29. Bxf3 {[%clk 0:00:31.2]} 29... Nf6
{[%clk 0:00:07.7]} 30. Qf5 {[%clk 0:00:23.9]} 30... exf3 {[%clk 0:00:07.9]} 31.
Qxf3 {[%clk 0:00:23.8]} 31... c6 {[%clk 0:00:06.3]} 32. Kg2 {[%clk 0:00:22.5]}
32... Qe8 {[%clk 0:00:05.9]} 33. Bc5 {[%clk 0:00:21.2]} 33... Rd8 {[%clk
0:00:04.8]} 34. Rc7 {[%clk 0:00:19.7]} 34... Bf8 {[%clk 0:00:05.1]} 35. Bxf8
{[%clk 0:00:19.1]} 35... Qxf8 {[%clk 0:00:05.5]} 36. Rbb7 {[%clk 0:00:19.3]}
36... Rde8 {[%clk 0:00:03.7]} 37. Rxf7 {[%clk 0:00:18.5]} 37... Qxf7 {[%clk
0:00:03.8]} 38. Rxf7 {[%clk 0:00:19.3]} 38... Kxf7 {[%clk 0:00:04.7]} 39. a5
{[%clk 0:00:18.4]} 39... Kg6 {[%clk 0:00:02.4]} 40. Qf5+ {[%clk 0:00:13.8]}
40... Kh6 {[%clk 0:00:02.9]} 41. Na4 {[%clk 0:00:11.3]} 41... Ne4 {[%clk
0:00:02.7]} 42. Nc5 {[%clk 0:00:10.8]} 42... Rf6 {[%clk 0:00:02.6]} 43. Qd7
{[%clk 0:00:05.2]} 43... Rxf2+ {[%clk 0:00:03.1]} 44. Kg1 {[%clk 0:00:05.6]}
44... Nf6 {[%clk 0:00:03.7]} 45. Qf7 {[%clk 0:00:04]} 45... Rf3 {[%clk 0:00:04]}
46. e4 {[%clk 0:00:03.4]} 46... Rg3+ {[%clk 0:00:02.5]} 47. Kf1 {[%clk
0:00:01.9]} 47... Rf3+ {[%clk 0:00:02.5]} 48. Kg1 {[%clk 0:00:01.1]} 48... Rf4
{[%clk 0:00:02.9]} 0-1

[Event "Late-Titled-Tuesday-Blitz-October-03-2023"]
[Site "Chess.com"]
[Date "2023.10.03"]
[Round "8"]
[White "ChristopherYoo"]
[Black "FairChess_on_YouTube"]
[Result "1-0"]
[WhiteElo "3006"]
[BlackElo "3039"]
[TimeControl "180+1"]
[EndTime "15:25:42 PDT"]
[Termination "ChristopherYoo won by checkmate"]

1. e4 {[%clk 0:03:00.9]} 1... e6 {[%clk 0:03:00.2]} 2. d3 {[%clk 0:02:57]} 2...
d5 {[%clk 0:02:59.8]} 3. Nd2 {[%clk 0:02:57.9]} 3... Nc6 {[%clk 0:02:57.6]} 4.
Ngf3 {[%clk 0:02:58.4]} 4... Bd6 {[%clk 0:02:57.1]} 5. g3 {[%clk 0:02:58.7]}
5... Nge7 {[%clk 0:02:52.2]} 6. Bg2 {[%clk 0:02:58.8]} 6... O-O {[%clk
0:02:52.3]} 7. O-O {[%clk 0:02:58.8]} 7... dxe4 {[%clk 0:02:46.2]} 8. dxe4
{[%clk 0:02:56.8]} 8... e5 {[%clk 0:02:44.8]} 9. Nc4 {[%clk 0:02:56.9]} 9... Be6
{[%clk 0:02:43.8]} 10. Qe2 {[%clk 0:02:56.3]} 10... Ng6 {[%clk 0:02:39.2]} 11.
c3 {[%clk 0:02:46.3]} 11... Qe7 {[%clk 0:02:30.4]} 12. b4 {[%clk 0:02:39.5]}
12... Rad8 {[%clk 0:02:27.4]} 13. a4 {[%clk 0:02:22.3]} 13... f6 {[%clk
0:02:26.6]} 14. Ba3 {[%clk 0:02:02.7]} 14... Qf7 {[%clk 0:02:25.8]} 15. Nfd2
{[%clk 0:02:01.8]} 15... Nce7 {[%clk 0:02:18.7]} 16. Rfd1 {[%clk 0:01:56.4]}
16... Kh8 {[%clk 0:02:17.1]} 17. h4 {[%clk 0:01:42.1]} 17... Ng8 {[%clk
0:02:16.2]} 18. Nxd6 {[%clk 0:01:36.9]} 18... cxd6 {[%clk 0:02:15.2]} 19. b5
{[%clk 0:01:37.1]} 19... Nh6 {[%clk 0:02:05.3]} 20. Nf1 {[%clk 0:01:32.5]} 20...
Qc7 {[%clk 0:01:45]} 21. Ne3 {[%clk 0:01:32]} 21... Rd7 {[%clk 0:01:42.2]} 22.
c4 {[%clk 0:01:27.5]} 22... b6 {[%clk 0:01:37.6]} 23. Rac1 {[%clk 0:01:21.5]}
23... Rc8 {[%clk 0:01:33.5]} 24. Nd5 {[%clk 0:01:21.5]} 24... Qd8 {[%clk
0:01:32.8]} 25. Nb4 {[%clk 0:00:51.6]} 25... Ne7 {[%clk 0:01:31.9]} 26. Qd3
{[%clk 0:00:43.4]} 26... Nf7 {[%clk 0:01:29.4]} 27. Rc3 {[%clk 0:00:39.4]} 27...
Rdc7 {[%clk 0:01:26.8]} 28. Rdc1 {[%clk 0:00:38.5]} 28... Qd7 {[%clk 0:01:11.8]}
29. Nd5 {[%clk 0:00:38.3]} 29... Bxd5 {[%clk 0:01:06.2]} 30. cxd5 {[%clk
0:00:38.1]} 30... Rxc3 {[%clk 0:00:49.5]} 31. Rxc3 {[%clk 0:00:39]} 31... Rxc3
{[%clk 0:00:49.7]} 32. Qxc3 {[%clk 0:00:38.8]} 32... g6 {[%clk 0:00:50.3]} 33.
Kh2 {[%clk 0:00:33]} 33... Kg8 {[%clk 0:00:44.2]} 34. Bh3 {[%clk 0:00:32.9]}
34... f5 {[%clk 0:00:44.5]} 35. f3 {[%clk 0:00:33.1]} 35... Qd8 {[%clk
0:00:39.2]} 36. Bc1 {[%clk 0:00:27.5]} 36... h6 {[%clk 0:00:35.2]} 37. Be3
{[%clk 0:00:25.5]} 37... Qd7 {[%clk 0:00:29.8]} 38. Qc4 {[%clk 0:00:24.8]} 38...
Qd8 {[%clk 0:00:29.3]} 39. Kg2 {[%clk 0:00:21.7]} 39... Kg7 {[%clk 0:00:26.6]}
40. Bf2 {[%clk 0:00:14.6]} 40... Qd7 {[%clk 0:00:20.7]} 41. Be1 {[%clk
0:00:14.7]} 41... Qd8 {[%clk 0:00:16.4]} 42. Bc3 {[%clk 0:00:15]} 42... Kg8
{[%clk 0:00:15.8]} 43. Kf2 {[%clk 0:00:10]} 43... h5 {[%clk 0:00:14.8]} 44. Bf1
{[%clk 0:00:09.1]} 44... Qf8 {[%clk 0:00:13.3]} 45. Kg2 {[%clk 0:00:07.4]} 45...
fxe4 {[%clk 0:00:12.9]} 46. fxe4 {[%clk 0:00:07.3]} 46... Nh6 {[%clk 0:00:13]}
47. Be2 {[%clk 0:00:07.5]} 47... Ng4 {[%clk 0:00:13.3]} 48. Bxg4 {[%clk
0:00:06.3]} 48... hxg4 {[%clk 0:00:14.2]} 49. Qe2 {[%clk 0:00:05]} 49... Qc8
{[%clk 0:00:14.7]} 50. Qd3 {[%clk 0:00:03.4]} 50... Qc5 {[%clk 0:00:13.9]} 51.
Bd2 {[%clk 0:00:02.8]} 51... Kg7 {[%clk 0:00:13]} 52. Kf1 {[%clk 0:00:03]} 52...
Ng8 {[%clk 0:00:13]} 53. Kg2 {[%clk 0:00:02.2]} 53... Nf6 {[%clk 0:00:13.1]} 54.
Kf1 {[%clk 0:00:02.7]} 54... Nh5 {[%clk 0:00:11.9]} 55. Kg2 {[%clk 0:00:02.7]}
55... Qc8 {[%clk 0:00:11.5]} 56. Kf1 {[%clk 0:00:02.6]} 56... Qf8+ {[%clk
0:00:11.6]} 57. Kg2 {[%clk 0:00:03.4]} 57... Qc8 {[%clk 0:00:11.2]} 58. Kf1
{[%clk 0:00:03.7]} 58... Qc5 {[%clk 0:00:11.1]} 59. Kg2 {[%clk 0:00:04]} 59...
Nf6 {[%clk 0:00:11.2]} 60. Kf1 {[%clk 0:00:03.6]} 60... Qc8 {[%clk 0:00:11.7]}
61. Kg2 {[%clk 0:00:02.9]} 61... Nd7 {[%clk 0:00:12.3]} 62. Kf2 {[%clk
0:00:02.1]} 62... Nc5 {[%clk 0:00:12.8]} 63. Qe3 {[%clk 0:00:02.6]} 63... Nb3
{[%clk 0:00:10.1]} 64. Qxb3 {[%clk 0:00:02.2]} 64... Qc5+ {[%clk 0:00:10]} 65.
Qe3 {[%clk 0:00:02.1]} 65... Qc2 {[%clk 0:00:10.1]} 66. Qh6+ {[%clk 0:00:02.5]}
66... Kf6 {[%clk 0:00:09.6]} 67. Qf8# {[%clk 0:00:02.5]} 1-0

[Event "Late-Titled-Tuesday-Blitz-October-03-2023"]
[Site "Chess.com"]
[Date "2023.10.03"]
[Round "8"]
[White "Inepton_Fermion"]
[Black "Maestro1986"]
[Result "0-1"]
[WhiteElo "2414"]
[BlackElo "2564"]
[TimeControl "180+1"]
[EndTime "15:25:43 PDT"]
[Termination "Maestro1986 won on time"]

1. Nf3 {[%clk 0:03:00.9]} 1... Nf6 {[%clk 0:02:59.6]} 2. b3 {[%clk 0:03:01.2]}
2... g6 {[%clk 0:02:59.8]} 3. Bb2 {[%clk 0:03:02]} 3... Bg7 {[%clk 0:03:00.2]}
4. g3 {[%clk 0:03:02.6]} 4... O-O {[%clk 0:03:00.5]} 5. Bg2 {[%clk 0:03:02.7]}
5... d6 {[%clk 0:03:01]} 6. d4 {[%clk 0:03:02.5]} 6... c6 {[%clk 0:02:58]} 7.
O-O {[%clk 0:02:59.7]} 7... Bf5 {[%clk 0:02:57.8]} 8. c4 {[%clk 0:02:58.6]} 8...
Qc8 {[%clk 0:02:56.5]} 9. Re1 {[%clk 0:02:57.9]} 9... Bh3 {[%clk 0:02:56.2]} 10.
Bh1 {[%clk 0:02:57.7]} 10... d5 {[%clk 0:02:43.7]} 11. Nc3 {[%clk 0:02:48.2]}
11... Qf5 {[%clk 0:02:38.2]} 12. Ne5 {[%clk 0:02:19.1]} 12... Nbd7 {[%clk
0:02:27.4]} 13. cxd5 {[%clk 0:02:03.4]} 13... Nxe5 {[%clk 0:02:24.8]} 14. dxe5
{[%clk 0:02:04.3]} 14... Ng4 {[%clk 0:02:23.6]} 15. f4 {[%clk 0:00:50.8]} 15...
Bxe5 {[%clk 0:01:12.2]} 16. Bf3 {[%clk 0:00:47.6]} 16... Ne3 {[%clk 0:00:48.3]}
17. Qd2 {[%clk 0:00:45.7]} 17... Bc7 {[%clk 0:00:27.8]} 18. Na4 {[%clk 0:00:23]}
18... b5 {[%clk 0:00:17.4]} 19. Qxe3 {[%clk 0:00:18]} 19... bxa4 {[%clk
0:00:17.5]} 20. dxc6 {[%clk 0:00:11.9]} 20... a3 {[%clk 0:00:17.9]} 21. Be5
{[%clk 0:00:08]} 21... Bb6 {[%clk 0:00:17.4]} 22. Bd4 {[%clk 0:00:08.2]} 22...
Bc7 {[%clk 0:00:17.8]} 23. Be5 {[%clk 0:00:07.6]} 23... Bb6 {[%clk 0:00:17.8]}
24. Bd4 {[%clk 0:00:08.3]} 24... Ba5 {[%clk 0:00:16.6]} 25. Red1 {[%clk
0:00:05.8]} 25... Rfd8 {[%clk 0:00:16.9]} 26. Qf2 {[%clk 0:00:02.6]} 26... Qc2
{[%clk 0:00:14.5]} 27. e3 {[%clk 0:00:02.5]} 27... Qf5 {[%clk 0:00:11.9]} 28. g4
{[%clk 0:00:01.8]} 28... Bxg4 {[%clk 0:00:11.3]} 29. Bxg4 {[%clk 0:00:02.3]}
29... Qxg4+ {[%clk 0:00:11.7]} 30. Qg2 {[%clk 0:00:02.9]} 30... Qe6 {[%clk
0:00:10.4]} 31. Rac1 {[%clk 0:00:03.1]} 31... Rac8 {[%clk 0:00:09.2]} 32. Kh1
{[%clk 0:00:03.1]} 32... a6 {[%clk 0:00:09.5]} 33. Rc4 {[%clk 0:00:02]} 33...
Bb6 {[%clk 0:00:08.3]} 34. Rdc1 {[%clk 0:00:01.8]} 34... Bxd4 {[%clk 0:00:08.3]}
35. exd4 {[%clk 0:00:01.7]} 35... Rd5 {[%clk 0:00:07.8]} 36. Qf3 {[%clk
0:00:01.8]} 36... Qd6 {[%clk 0:00:08.1]} 37. Rc5 {[%clk 0:00:01.7]} 37... Rxd4
{[%clk 0:00:08.2]} 38. Kg2 {[%clk 0:00:01.3]} 38... Rd3 {[%clk 0:00:08.7]} 39.
Qf2 {[%clk 0:00:01.4]} 39... Rd2 {[%clk 0:00:09.4]} 40. Kg1 {[%clk 0:00:01.4]}
40... Rxf2 {[%clk 0:00:09.7]} 41. Kxf2 {[%clk 0:00:02.3]} 41... Qxf4+ {[%clk
0:00:10]} 42. Kg1 {[%clk 0:00:02.4]} 42... Qe3+ {[%clk 0:00:10.5]} 43. Kh1
{[%clk 0:00:03.3]} 43... Qe4+ {[%clk 0:00:11.3]} 44. Kg1 {[%clk 0:00:03]} 44...
Qg4+ {[%clk 0:00:11]} 45. Kh1 {[%clk 0:00:03.1]} 45... Rc7 {[%clk 0:00:11.5]}
46. R5c4 {[%clk 0:00:02.1]} 46... Qf3+ {[%clk 0:00:11.4]} 47. Kg1 {[%clk
0:00:02.3]} 47... e5 {[%clk 0:00:11.8]} 48. R4c3 {[%clk 0:00:01.4]} 48... Qd5
{[%clk 0:00:11.6]} 49. Kf2 {[%clk 0:00:01.3]} 49... f5 {[%clk 0:00:11.6]} 50.
Rc5 {[%clk 0:00:01.2]} 50... Qd4+ {[%clk 0:00:11.8]} 51. Kf1 {[%clk 0:00:01.3]}
51... e4 {[%clk 0:00:11.5]} 52. R5c2 {[%clk 0:00:02]} 52... Qd3+ {[%clk
0:00:11.2]} 53. Ke1 {[%clk 0:00:02.4]} 53... e3 {[%clk 0:00:11.5]} 54. Re2
{[%clk 0:00:02.6]} 54... f4 {[%clk 0:00:11.8]} 55. Rd1 {[%clk 0:00:03]} 55...
Qc3+ {[%clk 0:00:11.1]} 56. Kf1 {[%clk 0:00:03.7]} 56... f3 {[%clk 0:00:11.4]}
57. Rd8+ {[%clk 0:00:04.2]} 57... Kf7 {[%clk 0:00:11.4]} 58. Re1 {[%clk
0:00:02.9]} 58... e2+ {[%clk 0:00:11.5]} 59. Kg1 {[%clk 0:00:02]} 59... Qe3+
{[%clk 0:00:11.2]} 60. Kh1 {[%clk 0:00:02.1]} 60... f2 {[%clk 0:00:11.6]} 61.
Rf8+ {[%clk 0:00:01.4]} 61... Kxf8 {[%clk 0:00:11.2]} 62. Rc1 {[%clk 0:00:01.2]}
62... Qxc1+ {[%clk 0:00:11.3]} 0-1

[Event "Late-Titled-Tuesday-Blitz-October-03-2023"]
[Site "Chess.com"]
[Date "2023.10.03"]
[Round "8"]
[White "Rud_Makarian"]
[Black "KaydenTroffChess"]
[Result "0-1"]
[WhiteElo "2953"]
[BlackElo "2782"]
[TimeControl "180+1"]
[EndTime "15:25:48 PDT"]
[Termination "KaydenTroffChess won by resignation"]

1. d4 {[%clk 0:03:00]} 1... Nf6 {[%clk 0:02:58.1]} 2. c4 {[%clk 0:03:00]} 2...
g6 {[%clk 0:02:57.9]} 3. Nc3 {[%clk 0:02:59.6]} 3... d5 {[%clk 0:02:58.3]} 4.
Bg5 {[%clk 0:02:58.3]} 4... Ne4 {[%clk 0:02:57.8]} 5. cxd5 {[%clk 0:02:57.7]}
5... Nxc3 {[%clk 0:02:50]} 6. bxc3 {[%clk 0:02:58.4]} 6... Qxd5 {[%clk 0:02:50]}
7. Nf3 {[%clk 0:02:58.7]} 7... Bg7 {[%clk 0:02:48.5]} 8. e3 {[%clk 0:02:58]}
8... Qa5 {[%clk 0:02:45.8]} 9. Qb3 {[%clk 0:02:46.7]} 9... Be6 {[%clk
0:02:27.1]} 10. Qb4 {[%clk 0:02:28.7]} 10... Qxb4 {[%clk 0:02:23.9]} 11. cxb4
{[%clk 0:02:29.5]} 11... Nd7 {[%clk 0:02:17.2]} 12. Bd3 {[%clk 0:02:23.8]} 12...
c5 {[%clk 0:02:14]} 13. bxc5 {[%clk 0:02:23.4]} 13... Nxc5 {[%clk 0:02:13.7]}
14. Bb5+ {[%clk 0:02:23.2]} 14... Bd7 {[%clk 0:02:13.1]} 15. Bxd7+ {[%clk
0:02:22.7]} 15... Nxd7 {[%clk 0:02:13.3]} 16. Ke2 {[%clk 0:02:21.8]} 16... h6
{[%clk 0:02:12.4]} 17. Bf4 {[%clk 0:02:21.1]} 17... Rc8 {[%clk 0:02:07.8]} 18.
Rac1 {[%clk 0:02:20.7]} 18... O-O {[%clk 0:02:07.3]} 19. Bc7 {[%clk 0:02:15.4]}
19... Nf6 {[%clk 0:01:54]} 20. Rc2 {[%clk 0:02:05]} 20... Nd5 {[%clk 0:01:50]}
21. Rhc1 {[%clk 0:02:05.2]} 21... b6 {[%clk 0:01:33.4]} 22. a3 {[%clk
0:01:58.8]} 22... f5 {[%clk 0:01:27.7]} 23. Be5 {[%clk 0:01:54.9]} 23... Rxc2+
{[%clk 0:01:22.1]} 24. Rxc2 {[%clk 0:01:55.5]} 24... Bf6 {[%clk 0:01:21.9]} 25.
Rc6 {[%clk 0:01:50.7]} 25... Rd8 {[%clk 0:01:21.4]} 26. Kd3 {[%clk 0:01:48.6]}
26... Kf7 {[%clk 0:01:18.6]} 27. Kc4 {[%clk 0:01:46.2]} 27... Rd7 {[%clk
0:01:11.7]} 28. Kb5 {[%clk 0:01:37.9]} 28... g5 {[%clk 0:01:05]} 29. Bxf6 {[%clk
0:01:35.5]} 29... exf6 {[%clk 0:01:04.9]} 30. Nd2 {[%clk 0:01:34.2]} 30... Nc7+
{[%clk 0:00:45.7]} 31. Kc4 {[%clk 0:01:33.2]} 31... Ne8 {[%clk 0:00:46.3]} 32.
Kd3 {[%clk 0:01:29.9]} 32... Rc7 {[%clk 0:00:41.6]} 33. Rxc7+ {[%clk 0:01:24.7]}
33... Nxc7 {[%clk 0:00:42.5]} 34. Kc4 {[%clk 0:01:23.7]} 34... Ke6 {[%clk
0:00:42.2]} 35. a4 {[%clk 0:01:20.4]} 35... Kd6 {[%clk 0:00:38.6]} 36. h3 {[%clk
0:01:18.7]} 36... a6 {[%clk 0:00:37.1]} 37. g4 {[%clk 0:01:17.2]} 37... b5+
{[%clk 0:00:31.7]} 38. axb5 {[%clk 0:01:16.7]} 38... axb5+ {[%clk 0:00:32.6]}
39. Kd3 {[%clk 0:01:10]} 39... fxg4 {[%clk 0:00:30.8]} 40. hxg4 {[%clk
0:01:10.7]} 40... Nd5 {[%clk 0:00:29.5]} 41. Ne4+ {[%clk 0:01:07.2]} 41... Ke7
{[%clk 0:00:28.6]} 42. Ng3 {[%clk 0:01:05.4]} 42... Kf7 {[%clk 0:00:23.9]} 43.
Nf5 {[%clk 0:01:05.4]} 43... Kg6 {[%clk 0:00:23.6]} 44. e4 {[%clk 0:01:05]}
44... Nf4+ {[%clk 0:00:22.8]} 45. Kc3 {[%clk 0:00:56.8]} 45... h5 {[%clk
0:00:22.3]} 46. gxh5+ {[%clk 0:00:57.6]} 46... Kxh5 {[%clk 0:00:21.3]} 47. d5
{[%clk 0:00:58]} 47... Kg6 {[%clk 0:00:19.5]} 48. f3 {[%clk 0:00:55.5]} 48...
Nxd5+ {[%clk 0:00:17.5]} 49. exd5 {[%clk 0:00:40.6]} 49... Kxf5 {[%clk
0:00:18.4]} 50. Kb4 {[%clk 0:00:41]} 50... Ke5 {[%clk 0:00:16.9]} 51. Kc5 {[%clk
0:00:41.4]} 51... b4 {[%clk 0:00:16.2]} 52. d6 {[%clk 0:00:41.9]} 52... b3
{[%clk 0:00:10.1]} 53. d7 {[%clk 0:00:41.8]} 53... b2 {[%clk 0:00:10.8]} 54.
d8=Q {[%clk 0:00:42]} 54... b1=Q {[%clk 0:00:11.4]} 55. Qc7+ {[%clk 0:00:27.6]}
55... Ke6 {[%clk 0:00:10.3]} 56. Qc8+ {[%clk 0:00:25]} 56... Kf7 {[%clk
0:00:10.1]} 57. Qd7+ {[%clk 0:00:23.4]} 57... Kg6 {[%clk 0:00:10.4]} 58. Qe8+
{[%clk 0:00:23.5]} 58... Kf5 {[%clk 0:00:07]} 59. Qe3 {[%clk 0:00:15.7]} 59...
Qc2+ {[%clk 0:00:06]} 60. Kd6 {[%clk 0:00:12.6]} 60... Qd1+ {[%clk 0:00:05.5]}
61. Ke7 {[%clk 0:00:12.1]} 61... Qd5 {[%clk 0:00:05.1]} 62. Kf8 {[%clk
0:00:10.8]} 62... Qd8+ {[%clk 0:00:04.8]} 63. Kg7 {[%clk 0:00:10.5]} 63... Qd7+
{[%clk 0:00:05.4]} 64. Kh6 {[%clk 0:00:09.7]} 64... Qd5 {[%clk 0:00:05.1]} 65.
Kg7 {[%clk 0:00:08]} 65... Qe5 {[%clk 0:00:04.8]} 66. Qd2 {[%clk 0:00:06.6]}
66... Qe7+ {[%clk 0:00:04.2]} 67. Kh6 {[%clk 0:00:06.8]} 67... Qf8+ {[%clk
0:00:04.7]} 68. Kh7 {[%clk 0:00:06]} 68... Qf7+ {[%clk 0:00:05.4]} 69. Kh8
{[%clk 0:00:06.4]} 69... Kg6 {[%clk 0:00:06]} 70. Qd3+ {[%clk 0:00:05.5]} 70...
f5 {[%clk 0:00:06.5]} 71. Qd6+ {[%clk 0:00:02.8]} 71... Qf6+ {[%clk 0:00:06.8]}
72. Qxf6+ {[%clk 0:00:03.7]} 72... Kxf6 {[%clk 0:00:07.7]} 0-1